{"text_format":"3","workbook":"xlsx","n_sheets":1,"sheets":["Tabelle1"],"not_rendered":{"images":1,"defined_names":1},"read":"whole","date_system":"1900"}

{"sheet":"Tabelle1","index":0,"n_rows":39,"n_cols":11,"rows_kept":39,"merged":[[0,0,0,1],[0,2,0,4],[0,6,0,10],[2,1,2,2],[2,4,2,5],[2,7,2,10],[4,0,4,10],[6,0,6,10],[8,0,8,10],[9,0,9,6],[10,0,10,6],[11,0,11,6],[12,0,12,6],[13,0,13,6],[14,0,14,6],[15,0,15,6],[16,0,16,6],[17,0,17,6],[18,0,18,6],[19,0,19,6],[20,0,20,9],[22,0,22,10],[23,0,23,6],[24,0,24,6],[25,0,25,6],[26,0,26,6],[27,0,27,6],[28,0,28,6],[29,0,29,9],[31,0,32,0],[31,1,31,4],[31,5,31,10],[32,1,32,4],[32,5,32,10],[34,0,34,10],[36,1,36,2],[36,3,36,4],[36,5,36,10],[38,0,38,10]]}
["Organisationseinheit",{"$nulls":4},"Leitung"]
[]
["Kontaktperson",null,null,"E-Mail",null,null,"Telefon"]
[]
["Die folgenden Tabellen dienen der Anforderung von Coronaselbsttests (Laientests) für Beschäftigte und Studierende. – Gleichzeitig dienen die Tabellen der UDE als Verwendungsnachweis."]
[]
["Hinweise: Die UDE erhält wöchentlich Tests vom Land NRW für Beschäftigte und beschafft Tests für Studierende nach Bedarf aus eigenen Mitteln. Die Tests können daher nur sukzessive ausgegeben werden. Zudem sind die Tests in Einheiten mit 20 Tests verpackt, die vor Ort von Ihnen teilweise einzeln und teilweise als 10-er Sets jeweils für eine Person ausgegeben werden können. Sie erhalten jeweils ganze Packungen und können etwaige „überzählige“ Tests als lokale Reserve verwenden. Dementsprechend unterscheiden sich die nachfolgenden Tabellen in der Berechnung. Ihre Angaben sollten sich auf die kommenden drei bis vier Wochen beziehen. Bei Veranstaltungen die insgesamt über mehrere Tage gehen sind pro Woche maximal zwei Tage zu berücksichtigen. Sobald die Tests aufgebraucht sind bestellen Sie bitte das nächste Kontingent in gleicher Weise."]
[]
["Personen die (auch über mehrere Wochen) insgesamt an 10 oder mehr Tagen teilnehmen"]
["Veranstaltung/Tätigkeit",{"$nulls":6},"Studierende","Beschäftigte","Summe","Packungen"]
[{"$nulls":9},{"$f":"H11+I11","v":0},{"$f":"ROUNDUP(J11/2,0)","v":0}]
[{"$nulls":9},{"$f":"H12+I12","v":0},{"$f":"ROUNDUP(J12/2,0)","v":0}]
[{"$nulls":9},0,0]
[{"$nulls":9},{"$f":"H14+I14","v":0},0]
[{"$nulls":9},0,0]
[{"$nulls":9},0,0]
[{"$nulls":9},0,0]
[{"$nulls":9},0,0]
[{"$nulls":9},0,0]
[{"$nulls":9},0,0]
["(20-er Packungen mit 10-er Sets) - Ausgabemenge ",{"$nulls":9},{"$f":"SUM(K11:K20)","v":0}]
[]
["Personen die (zunächst) nur an einem Tag teilnehmen"]
["Veranstaltung/Tätigkeit",{"$nulls":6},"Studierende","Beschäftigte","Summe","Packungen"]
[{"$nulls":9},{"$f":"H25+I25","v":0},{"$f":"ROUNDUP(J25/20,0)","v":0}]
[{"$nulls":9},{"$f":"H26+I26","v":0},{"$f":"ROUNDUP(J26/20,0)","v":0}]
[{"$nulls":9},0,0]
[{"$nulls":9},0,0]
[{"$nulls":9},0,0]
["(20-er Packungen mit Einzeltests) - Ausgabemenge",{"$nulls":9},{"$f":"SUM(K25:K29)","v":0}]
[]
["Ihr Standort","     Campus Essen (Abholung Zentrallager R10)",{"$nulls":3},"     Campus Duisburg (Abholung Zentrallager LM)"]
[null,"     Außenliegenschaft (Zustellung), Anschrift:"]
[]
["Aus der Nutzung der Tests ergeben sich keine Lockerungen oder Abweichungen von den geltenden Coronaschutzmaßnahmen und Hygieneregeln. Die Regelungen des Betrieblichen Maßnahmenkonzepts gelten somit vollumfänglich weiter. Dies gilt insbesondere für die Regelungen zur Reduzierung des Präsenzbetriebs, des Abstands und der Raumbelegung."]
[]
["Datum",null,null,"Unterschrift Leitung"]
[]
["Das ausgefüllte Formular senden Sie bitte per E-Mail an: zentrallager@uni-due.de"]